Workbook

Sheet Inicial
B17: N. USP
B18: 468941

Sheet Questão1
K4: Área amostral de cada local (m2) | O4: =ROUND(AleatorioEntreFixo()*20*MID(Inicial!B18,5,3),0) -> 242
K5: Número de famílias identificadas | O5: =ROUND(AleatorioEntreFixo()*4*MID(Inicial!B18,2,2)*1,0) -> 179
K6: No | L6: Espécie | M6: Grupo | N6: ni | O6: PAP med | P6: DAP | Q6: Unidades | R6: Da | S6: Dr | T6: AB | U6: Doa | V6: Dor | W6: Fa | X6: Fr | Y6: VIa | Z6: VIr | AA6: H
M7: Ecológico | O7: cm | P7: cm | Q7: amostrais | R7: ind/ha | S7: % | T7: m2/ha | V7: % | W7: % | X7: % | Y7: % | Z7: %
K8: 1 | L8: Zeyheria tuberculosa | M8: SI | N8: =ROUND(MID(Inicial!$B$18,4,2)*2*AleatorioEntreFixo(),0) -> 80 | O8: =IF(AleatorioEntreFixo()*MID(Inicial!$B$18,3,2)*5<=125,AleatorioEntreFixo()*MID(Inicial!$B$18,3,2)*5,IF(AND(AleatorioEntreFixo()*MID(Inicial!$B$18,3,2)*5>125,AleatorioEntreFixo()*MID(Inicial!$B$18,3,2)*5<=220),(AleatorioEntreFixo()*MID(Inicial!$B$18,3,2)*5)/1.5,(AleatorioEntreFixo()*MID(Inicial!$B$18,3,2)*5)/2)) -> 22.0007056 | Q8: =ROUND(AleatorioEntreFixo()*MID(Inicial!$B$18,2,2)*1,0) -> 65 | AE8: GE | AF8: % Fr | AG8: % Dr | AH8: %Dor | AI8: %Vir
K9: 2 | L9: Rollinia silvatica | M9: SI | N9: =ROUND(MID(Inicial!$B$18,4,2)*2*AleatorioEntreFixo(),0) -> 113 | O9: =IF(AleatorioEntreFixo()*MID(Inicial!$B$18,3,2)*5<=125,AleatorioEntreFixo()*MID(Inicial!$B$18,3,2)*5,IF(AND(AleatorioEntreFixo()*MID(Inicial!$B$18,3,2)*5>125,AleatorioEntreFixo()*MID(Inicial!$B$18,3,2)*5<=220),(AleatorioEntreFixo()*MID(Inicial!$B$18,3,2)*5)/1.5,(AleatorioEntreFixo()*MID(Inicial!$B$18,3,2)*5)/2)) -> 196.7157954 | Q9: =ROUND(AleatorioEntreFixo()*MID(Inicial!$B$18,2,2)*1,0) -> 46 | AE9: P | AF9: =SUMIFS(X8:X37,M8:M37,"P") -> 0 | AG9: =SUMIFS(S8:S37,$M$8:$M$37,"P") -> 0 | AH9: =SUMIFS(V8:V37,$M$8:$M$37,"P") -> 0 | AI9: =SUMIFS(Z8:Z37,$M$8:$M$37,"P") -> 0
K10: 3 | L10: Bauhinia forficata | M10: P | N10: =ROUND(MID(Inicial!$B$18,4,2)*2*AleatorioEntreFixo(),0) -> 155 | O10: =IF(AleatorioEntreFixo()*MID(Inicial!$B$18,3,2)*5<=125,AleatorioEntreFixo()*MID(Inicial!$B$18,3,2)*5,IF(AND(AleatorioEntreFixo()*MID(Inicial!$B$18,3,2)*5>125,AleatorioEntreFixo()*MID(Inicial!$B$18,3,2)*5<=220),(AleatorioEntreFixo()*MID(Inicial!$B$18,3,2)*5)/1.5,(AleatorioEntreFixo()*MID(Inicial!$B$18,3,2)*5)/2)) -> 169.7557126 | Q10: =ROUND(AleatorioEntreFixo()*MID(Inicial!$B$18,2,2)*1,0) -> 49 | AE10: SI | AF10: =SUMIFS($X$8:$X$37,$M$8:$M$37,"SI") -> 0 | AG10: =SUMIFS($S$8:$S$37,$M$8:$M$37,"SI") -> 0 | AH10: =SUMIFS($V$8:$V$37,$M$8:$M$37,"SI") -> 0 | AI10: =SUMIFS($Z$8:$Z$37,$M$8:$M$37,"SI") -> 0
K11: 4 | L11: Zanthoxylum rhoifolium | M11: ST | N11: =ROUND(MID(Inicial!$B$18,4,2)*2*AleatorioEntreFixo(),0) -> 126 | O11: =IF(AleatorioEntreFixo()*MID(Inicial!$B$18,3,2)*5<=125,AleatorioEntreFixo()*MID(Inicial!$B$18,3,2)*5,IF(AND(AleatorioEntreFixo()*MID(Inicial!$B$18,3,2)*5>125,AleatorioEntreFixo()*MID(Inicial!$B$18,3,2)*5<=220),(AleatorioEntreFixo()*MID(Inicial!$B$18,3,2)*5)/1.5,(AleatorioEntreFixo()*MID(Inicial!$B$18,3,2)*5)/2)) -> 135.3303383 | Q11: =ROUND(AleatorioEntreFixo()*MID(Inicial!$B$18,2,2)*1,0) -> 58 | AE11: ST | AF11: =SUMIFS($X$8:$X$37,$M$8:$M$37,"ST") -> 0 | AG11: =SUMIFS($S$8:$S$37,$M$8:$M$37,"ST") -> 0 | AH11: =SUMIFS($V$8:$V$37,$M$8:$M$37,"ST") -> 0 | AI11: =SUMIFS($Z$8:$Z$37,$M$8:$M$37,"ST") -> 0
K12: 5 | L12: Sparattosperma leucanthum | M12: SI | N12: =ROUND(MID(Inicial!$B$18,4,2)*2*AleatorioEntreFixo(),0) -> 31 | O12: =IF(AleatorioEntreFixo()*MID(Inicial!$B$18,3,2)*5<=125,AleatorioEntreFixo()*MID(Inicial!$B$18,3,2)*5,IF(AND(AleatorioEntreFixo()*MID(Inicial!$B$18,3,2)*5>125,AleatorioEntreFixo()*MID(Inicial!$B$18,3,2)*5<=220),(AleatorioEntreFixo()*MID(Inicial!$B$18,3,2)*5)/1.5,(AleatorioEntreFixo()*MID(Inicial!$B$18,3,2)*5)/2)) -> 221.1407875 | Q12: =ROUND(AleatorioEntreFixo()*MID(Inicial!$B$18,2,2)*1,0) -> 44
K13: 6 | L13: Hortia arborea | M13: ST | N13: =ROUND(MID(Inicial!$B$18,4,2)*2*AleatorioEntreFixo(),0) -> 42 | O13: =IF(AleatorioEntreFixo()*MID(Inicial!$B$18,3,2)*5<=125,AleatorioEntreFixo()*MID(Inicial!$B$18,3,2)*5,IF(AND(AleatorioEntreFixo()*MID(Inicial!$B$18,3,2)*5>125,AleatorioEntreFixo()*MID(Inicial!$B$18,3,2)*5<=220),(AleatorioEntreFixo()*MID(Inicial!$B$18,3,2)*5)/1.5,(AleatorioEntreFixo()*MID(Inicial!$B$18,3,2)*5)/2)) -> 407.3502275 | Q13: =ROUND(AleatorioEntreFixo()*MID(Inicial!$B$18,2,2)*1,0) -> 53
K14: 7 | L14: Vitex sellowiana | M14: SI | N14: =ROUND(MID(Inicial!$B$18,4,2)*2*AleatorioEntreFixo(),0) -> 143 | O14: =IF(AleatorioEntreFixo()*MID(Inicial!$B$18,3,2)*5<=125,AleatorioEntreFixo()*MID(Inicial!$B$18,3,2)*5,IF(AND(AleatorioEntreFixo()*MID(Inicial!$B$18,3,2)*5>125,AleatorioEntreFixo()*MID(Inicial!$B$18,3,2)*5<=220),(AleatorioEntreFixo()*MID(Inicial!$B$18,3,2)*5)/1.5,(AleatorioEntreFixo()*MID(Inicial!$B$18,3,2)*5)/2)) -> 109.5113076 | Q14: =ROUND(AleatorioEntreFixo()*MID(Inicial!$B$18,2,2)*1,0) -> 33
K15: 8 | L15: Croton floribundus | M15: P | N15: =ROUND(MID(Inicial!$B$18,4,2)*2*AleatorioEntreFixo(),0) -> 106 | O15: =IF(AleatorioEntreFixo()*MID(Inicial!$B$18,3,2)*5<=125,AleatorioEntreFixo()*MID(Inicial!$B$18,3,2)*5,IF(AND(AleatorioEntreFixo()*MID(Inicial!$B$18,3,2)*5>125,AleatorioEntreFixo()*MID(Inicial!$B$18,3,2)*5<=220),(AleatorioEntreFixo()*MID(Inicial!$B$18,3,2)*5)/1.5,(AleatorioEntreFixo()*MID(Inicial!$B$18,3,2)*5)/2)) -> 30.73840519 | Q15: =ROUND(AleatorioEntreFixo()*MID(Inicial!$B$18,2,2)*1,0) -> 9
K16: 9 | L16: Senna macranthera | M16: P | N16: =ROUND(MID(Inicial!$B$18,4,2)*2*AleatorioEntreFixo(),0) -> 57 | O16: =IF(AleatorioEntreFixo()*MID(Inicial!$B$18,3,2)*5<=125,AleatorioEntreFixo()*MID(Inicial!$B$18,3,2)*5,IF(AND(AleatorioEntreFixo()*MID(Inicial!$B$18,3,2)*5>125,AleatorioEntreFixo()*MID(Inicial!$B$18,3,2)*5<=220),(AleatorioEntreFixo()*MID(Inicial!$B$18,3,2)*5)/1.5,(AleatorioEntreFixo()*MID(Inicial!$B$18,3,2)*5)/2)) -> 109.7642942 | Q16: =ROUND(AleatorioEntreFixo()*MID(Inicial!$B$18,2,2)*1,0) -> 52
K17: 10 | L17: Coutarea hexandra | M17: SI | N17: =ROUND(MID(Inicial!$B$18,4,2)*2*AleatorioEntreFixo(),0) -> 159 | O17: =IF(AleatorioEntreFixo()*MID(Inicial!$B$18,3,2)*5<=125,AleatorioEntreFixo()*MID(Inicial!$B$18,3,2)*5,IF(AND(AleatorioEntreFixo()*MID(Inicial!$B$18,3,2)*5>125,AleatorioEntreFixo()*MID(Inicial!$B$18,3,2)*5<=220),(AleatorioEntreFixo()*MID(Inicial!$B$18,3,2)*5)/1.5,(AleatorioEntreFixo()*MID(Inicial!$B$18,3,2)*5)/2)) -> 143.6836953 | Q17: =ROUND(AleatorioEntreFixo()*MID(Inicial!$B$18,2,2)*1,0) -> 37
K18: 11 | L18: Dictyoloma vandellianum | M18: SI | N18: =ROUND(MID(Inicial!$B$18,4,2)*2*AleatorioEntreFixo(),0) -> 51 | O18: =IF(AleatorioEntreFixo()*MID(Inicial!$B$18,3,2)*5<=125,AleatorioEntreFixo()*MID(Inicial!$B$18,3,2)*5,IF(AND(AleatorioEntreFixo()*MID(Inicial!$B$18,3,2)*5>125,AleatorioEntreFixo()*MID(Inicial!$B$18,3,2)*5<=220),(AleatorioEntreFixo()*MID(Inicial!$B$18,3,2)*5)/1.5,(AleatorioEntreFixo()*MID(Inicial!$B$18,3,2)*5)/2)) -> 66.36383434 | Q18: =ROUND(AleatorioEntreFixo()*MID(Inicial!$B$18,2,2)*1,0) -> 38
K19: 12 | L19: Piptocarpha macropoda | M19: P | N19: =ROUND(MID(Inicial!$B$18,4,2)*2*AleatorioEntreFixo(),0) -> 33 | O19: =IF(AleatorioEntreFixo()*MID(Inicial!$B$18,3,2)*5<=125,AleatorioEntreFixo()*MID(Inicial!$B$18,3,2)*5,IF(AND(AleatorioEntreFixo()*MID(Inicial!$B$18,3,2)*5>125,AleatorioEntreFixo()*MID(Inicial!$B$18,3,2)*5<=220),(AleatorioEntreFixo()*MID(Inicial!$B$18,3,2)*5)/1.5,(AleatorioEntreFixo()*MID(Inicial!$B$18,3,2)*5)/2)) -> 167.7652715 | Q19: =ROUND(AleatorioEntreFixo()*MID(Inicial!$B$18,2,2)*1,0) -> 51
K20: 13 | L20: Sapium glandulatum | M20: SI | N20: =ROUND(MID(Inicial!$B$18,4,2)*2*AleatorioEntreFixo(),0) -> 41 | O20: =IF(AleatorioEntreFixo()*MID(Inicial!$B$18,3,2)*5<=125,AleatorioEntreFixo()*MID(Inicial!$B$18,3,2)*5,IF(AND(AleatorioEntreFixo()*MID(Inicial!$B$18,3,2)*5>125,AleatorioEntreFixo()*MID(Inicial!$B$18,3,2)*5<=220),(AleatorioEntreFixo()*MID(Inicial!$B$18,3,2)*5)/1.5,(AleatorioEntreFixo()*MID(Inicial!$B$18,3,2)*5)/2)) -> 156.1431901 | Q20: =ROUND(AleatorioEntreFixo()*MID(Inicial!$B$18,2,2)*1,0) -> 6
K21: 14 | L21: Siparuna guianensis | M21: SI | N21: =ROUND(MID(Inicial!$B$18,4,2)*2*AleatorioEntreFixo(),0) -> 133 | O21: =IF(AleatorioEntreFixo()*MID(Inicial!$B$18,3,2)*5<=125,AleatorioEntreFixo()*MID(Inicial!$B$18,3,2)*5,IF(AND(AleatorioEntreFixo()*MID(Inicial!$B$18,3,2)*5>125,AleatorioEntreFixo()*MID(Inicial!$B$18,3,2)*5<=220),(AleatorioEntreFixo()*MID(Inicial!$B$18,3,2)*5)/1.5,(AleatorioEntreFixo()*MID(Inicial!$B$18,3,2)*5)/2)) -> 71.73875526 | Q21: =ROUND(AleatorioEntreFixo()*MID(Inicial!$B$18,2,2)*1,0) -> 63
K22: 15 | L22: Dalbergia nigra | M22: SI | N22: =ROUND(MID(Inicial!$B$18,4,2)*2*AleatorioEntreFixo(),0) -> 164 | O22: =IF(AleatorioEntreFixo()*MID(Inicial!$B$18,3,2)*5<=125,AleatorioEntreFixo()*MID(Inicial!$B$18,3,2)*5,IF(AND(AleatorioEntreFixo()*MID(Inicial!$B$18,3,2)*5>125,AleatorioEntreFixo()*MID(Inicial!$B$18,3,2)*5<=220),(AleatorioEntreFixo()*MID(Inicial!$B$18,3,2)*5)/1.5,(AleatorioEntreFixo()*MID(Inicial!$B$18,3,2)*5)/2)) -> 140.8775419 | Q22: =ROUND(AleatorioEntreFixo()*MID(Inicial!$B$18,2,2)*1,0) -> 40
K23: 16 | L23: Eriotheca candolleana | M23: SI | N23: =ROUND(MID(Inicial!$B$18,4,2)*2*AleatorioEntreFixo(),0) -> 93 | O23: =IF(AleatorioEntreFixo()*MID(Inicial!$B$18,3,2)*5<=125,AleatorioEntreFixo()*MID(Inicial!$B$18,3,2)*5,IF(AND(AleatorioEntreFixo()*MID(Inicial!$B$18,3,2)*5>125,AleatorioEntreFixo()*MID(Inicial!$B$18,3,2)*5<=220),(AleatorioEntreFixo()*MID(Inicial!$B$18,3,2)*5)/1.5,(AleatorioEntreFixo()*MID(Inicial!$B$18,3,2)*5)/2)) -> 78.5450165 | Q23: =ROUND(AleatorioEntreFixo()*MID(Inicial!$B$18,2,2)*1,0) -> 4
K24: 17 | L24: Nectandra rigida | M24: SI | N24: =ROUND(MID(Inicial!$B$18,4,2)*2*AleatorioEntreFixo(),0) -> 172 | O24: =IF(AleatorioEntreFixo()*MID(Inicial!$B$18,3,2)*5<=125,AleatorioEntreFixo()*MID(Inicial!$B$18,3,2)*5,IF(AND(AleatorioEntreFixo()*MID(Inicial!$B$18,3,2)*5>125,AleatorioEntreFixo()*MID(Inicial!$B$18,3,2)*5<=220),(AleatorioEntreFixo()*MID(Inicial!$B$18,3,2)*5)/1.5,(AleatorioEntreFixo()*MID(Inicial!$B$18,3,2)*5)/2)) -> 176.3089873 | Q24: =ROUND(AleatorioEntreFixo()*MID(Inicial!$B$18,2,2)*1,0) -> 43
K25: 18 | L25: Cecropia glaziovii | M25: P | N25: =ROUND(MID(Inicial!$B$18,4,2)*2*AleatorioEntreFixo(),0) -> 72 | O25: =IF(AleatorioEntreFixo()*MID(Inicial!$B$18,3,2)*5<=125,AleatorioEntreFixo()*MID(Inicial!$B$18,3,2)*5,IF(AND(AleatorioEntreFixo()*MID(Inicial!$B$18,3,2)*5>125,AleatorioEntreFixo()*MID(Inicial!$B$18,3,2)*5<=220),(AleatorioEntreFixo()*MID(Inicial!$B$18,3,2)*5)/1.5,(AleatorioEntreFixo()*MID(Inicial!$B$18,3,2)*5)/2)) -> 210.2283885 | Q25: =ROUND(AleatorioEntreFixo()*MID(Inicial!$B$18,2,2)*1,0) -> 47
K26: 19 | L26: Vismia guianensis | M26: P | N26: =ROUND(MID(Inicial!$B$18,4,2)*2*AleatorioEntreFixo(),0) -> 79 | O26: =IF(AleatorioEntreFixo()*MID(Inicial!$B$18,3,2)*5<=125,AleatorioEntreFixo()*MID(Inicial!$B$18,3,2)*5,IF(AND(AleatorioEntreFixo()*MID(Inicial!$B$18,3,2)*5>125,AleatorioEntreFixo()*MID(Inicial!$B$18,3,2)*5<=220),(AleatorioEntreFixo()*MID(Inicial!$B$18,3,2)*5)/1.5,(AleatorioEntreFixo()*MID(Inicial!$B$18,3,2)*5)/2)) -> 98.38909884 | Q26: =ROUND(AleatorioEntreFixo()*MID(Inicial!$B$18,2,2)*1,0) -> 57
K27: 20 | L27: Vernonia diffusa | M27: P | N27: =ROUND(MID(Inicial!$B$18,4,2)*2*AleatorioEntreFixo(),0) -> 73 | O27: =IF(AleatorioEntreFixo()*MID(Inicial!$B$18,3,2)*5<=125,AleatorioEntreFixo()*MID(Inicial!$B$18,3,2)*5,IF(AND(AleatorioEntreFixo()*MID(Inicial!$B$18,3,2)*5>125,AleatorioEntreFixo()*MID(Inicial!$B$18,3,2)*5<=220),(AleatorioEntreFixo()*MID(Inicial!$B$18,3,2)*5)/1.5,(AleatorioEntreFixo()*MID(Inicial!$B$18,3,2)*5)/2)) -> 248.9538842 | Q27: =ROUND(AleatorioEntreFixo()*MID(Inicial!$B$18,2,2)*1,0) -> 61
K28: 21 | L28: Solanum cernuum | M28: P | N28: =ROUND(MID(Inicial!$B$18,4,2)*2*AleatorioEntreFixo(),0) -> 32 | O28: =IF(AleatorioEntreFixo()*MID(Inicial!$B$18,3,2)*5<=125,AleatorioEntreFixo()*MID(Inicial!$B$18,3,2)*5,IF(AND(AleatorioEntreFixo()*MID(Inicial!$B$18,3,2)*5>125,AleatorioEntreFixo()*MID(Inicial!$B$18,3,2)*5<=220),(AleatorioEntreFixo()*MID(Inicial!$B$18,3,2)*5)/1.5,(AleatorioEntreFixo()*MID(Inicial!$B$18,3,2)*5)/2)) -> 43.41358483 | Q28: =ROUND(AleatorioEntreFixo()*MID(Inicial!$B$18,2,2)*1,0) -> 31
K29: 22 | L29: Xylopia sericea | M29: P | N29: =ROUND(MID(Inicial!$B$18,4,2)*2*AleatorioEntreFixo(),0) -> 106 | O29: =IF(AleatorioEntreFixo()*MID(Inicial!$B$18,3,2)*5<=125,AleatorioEntreFixo()*MID(Inicial!$B$18,3,2)*5,IF(AND(AleatorioEntreFixo()*MID(Inicial!$B$18,3,2)*5>125,AleatorioEntreFixo()*MID(Inicial!$B$18,3,2)*5<=220),(AleatorioEntreFixo()*MID(Inicial!$B$18,3,2)*5)/1.5,(AleatorioEntreFixo()*MID(Inicial!$B$18,3,2)*5)/2)) -> 112.4644177 | Q29: =ROUND(AleatorioEntreFixo()*MID(Inicial!$B$18,2,2)*1,0) -> 46
K30: 23 | L30: Senna multijuga | M30: P | N30: =ROUND(MID(Inicial!$B$18,4,2)*2*AleatorioEntreFixo(),0) -> 68 | O30: =IF(AleatorioEntreFixo()*MID(Inicial!$B$18,3,2)*5<=125,AleatorioEntreFixo()*MID(Inicial!$B$18,3,2)*5,IF(AND(AleatorioEntreFixo()*MID(Inicial!$B$18,3,2)*5>125,AleatorioEntreFixo()*MID(Inicial!$B$18,3,2)*5<=220),(AleatorioEntreFixo()*MID(Inicial!$B$18,3,2)*5)/1.5,(AleatorioEntreFixo()*MID(Inicial!$B$18,3,2)*5)/2)) -> 318.6985734 | Q30: =ROUND(AleatorioEntreFixo()*MID(Inicial!$B$18,2,2)*1,0) -> 33
K31: 24 | L31: Peschiera fuchsiaefolia | M31: SI | N31: =ROUND(MID(Inicial!$B$18,4,2)*2*AleatorioEntreFixo(),0) -> 82 | O31: =IF(AleatorioEntreFixo()*MID(Inicial!$B$18,3,2)*5<=125,AleatorioEntreFixo()*MID(Inicial!$B$18,3,2)*5,IF(AND(AleatorioEntreFixo()*MID(Inicial!$B$18,3,2)*5>125,AleatorioEntreFixo()*MID(Inicial!$B$18,3,2)*5<=220),(AleatorioEntreFixo()*MID(Inicial!$B$18,3,2)*5)/1.5,(AleatorioEntreFixo()*MID(Inicial!$B$18,3,2)*5)/2)) -> 83.94526348 | Q31: =ROUND(AleatorioEntreFixo()*MID(Inicial!$B$18,2,2)*1,0) -> 11
K32: 25 | L32: Solanum granuloso-leprosum | M32: P | N32: =ROUND(MID(Inicial!$B$18,4,2)*2*AleatorioEntreFixo(),0) -> 139 | O32: =IF(AleatorioEntreFixo()*MID(Inicial!$B$18,3,2)*5<=125,AleatorioEntreFixo()*MID(Inicial!$B$18,3,2)*5,IF(AND(AleatorioEntreFixo()*MID(Inicial!$B$18,3,2)*5>125,AleatorioEntreFixo()*MID(Inicial!$B$18,3,2)*5<=220),(AleatorioEntreFixo()*MID(Inicial!$B$18,3,2)*5)/1.5,(AleatorioEntreFixo()*MID(Inicial!$B$18,3,2)*5)/2)) -> 11.72563573 | Q32: =ROUND(AleatorioEntreFixo()*MID(Inicial!$B$18,2,2)*1,0) -> 51
K33: 26 | L33: Cupania sp. | M33: ST | N33: =ROUND(MID(Inicial!$B$18,4,2)*2*AleatorioEntreFixo(),0) -> 188 | O33: =IF(AleatorioEntreFixo()*MID(Inicial!$B$18,3,2)*5<=125,AleatorioEntreFixo()*MID(Inicial!$B$18,3,2)*5,IF(AND(AleatorioEntreFixo()*MID(Inicial!$B$18,3,2)*5>125,AleatorioEntreFixo()*MID(Inicial!$B$18,3,2)*5<=220),(AleatorioEntreFixo()*MID(Inicial!$B$18,3,2)*5)/1.5,(AleatorioEntreFixo()*MID(Inicial!$B$18,3,2)*5)/2)) -> 124.6709259 | Q33: =ROUND(AleatorioEntreFixo()*MID(Inicial!$B$18,2,2)*1,0) -> 25
K34: 27 | L34: Myrcia fallax | M34: SI | N34: =ROUND(MID(Inicial!$B$18,4,2)*2*AleatorioEntreFixo(),0) -> 118 | O34: =IF(AleatorioEntreFixo()*MID(Inicial!$B$18,3,2)*5<=125,AleatorioEntreFixo()*MID(Inicial!$B$18,3,2)*5,IF(AND(AleatorioEntreFixo()*MID(Inicial!$B$18,3,2)*5>125,AleatorioEntreFixo()*MID(Inicial!$B$18,3,2)*5<=220),(AleatorioEntreFixo()*MID(Inicial!$B$18,3,2)*5)/1.5,(AleatorioEntreFixo()*MID(Inicial!$B$18,3,2)*5)/2)) -> 194.3156856 | Q34: =ROUND(AleatorioEntreFixo()*MID(Inicial!$B$18,2,2)*1,0) -> 14
K35: 28 | L35: Myrcia sp. | M35: SI | N35: =ROUND(MID(Inicial!$B$18,4,2)*2*AleatorioEntreFixo(),0) -> 39 | O35: =IF(AleatorioEntreFixo()*MID(Inicial!$B$18,3,2)*5<=125,AleatorioEntreFixo()*MID(Inicial!$B$18,3,2)*5,IF(AND(AleatorioEntreFixo()*MID(Inicial!$B$18,3,2)*5>125,AleatorioEntreFixo()*MID(Inicial!$B$18,3,2)*5<=220),(AleatorioEntreFixo()*MID(Inicial!$B$18,3,2)*5)/1.5,(AleatorioEntreFixo()*MID(Inicial!$B$18,3,2)*5)/2)) -> 109.0521362 | Q35: =ROUND(AleatorioEntreFixo()*MID(Inicial!$B$18,2,2)*1,0) -> 3
K36: 29 | L36: Nectandra saligna | M36: SI | N36: =ROUND(MID(Inicial!$B$18,4,2)*2*AleatorioEntreFixo(),0) -> 49 | O36: =IF(AleatorioEntreFixo()*MID(Inicial!$B$18,3,2)*5<=125,AleatorioEntreFixo()*MID(Inicial!$B$18,3,2)*5,IF(AND(AleatorioEntreFixo()*MID(Inicial!$B$18,3,2)*5>125,AleatorioEntreFixo()*MID(Inicial!$B$18,3,2)*5<=220),(AleatorioEntreFixo()*MID(Inicial!$B$18,3,2)*5)/1.5,(AleatorioEntreFixo()*MID(Inicial!$B$18,3,2)*5)/2)) -> 90.75152472 | Q36: =ROUND(AleatorioEntreFixo()*MID(Inicial!$B$18,2,2)*1,0) -> 40
K37: 30 | L37: Miconia cinnamomifolia | M37: P | N37: =ROUND(MID(Inicial!$B$18,4,2)*2*AleatorioEntreFixo(),0) -> 171 | O37: =IF(AleatorioEntreFixo()*MID(Inicial!$B$18,3,2)*5<=125,AleatorioEntreFixo()*MID(Inicial!$B$18,3,2)*5,IF(AND(AleatorioEntreFixo()*MID(Inicial!$B$18,3,2)*5>125,AleatorioEntreFixo()*MID(Inicial!$B$18,3,2)*5<=220),(AleatorioEntreFixo()*MID(Inicial!$B$18,3,2)*5)/1.5,(AleatorioEntreFixo()*MID(Inicial!$B$18,3,2)*5)/2)) -> 118.558521 | Q37: =ROUND(AleatorioEntreFixo()*MID(Inicial!$B$18,2,2)*1,0) -> 50
L38: Total | Q38: =ROUND(AleatorioEntreFixo()*MID(Inicial!$B$18,1,2)*10,0) -> 177

Sheet Questão2
J4: FA | K4: =IF(ISEVEN(Inicial!B18)=TRUE,0.5,0.7) -> 0.7
V5: Simulado (Pretendido)
V6: Ab2= | W6: 10 | Y6: q2= | Z6: 1.4 | AB6: b1= | AC6: =LN($Z$6)/(I11/100-I12/100) -> -3.364722366
I7: Observado | W7: D2 = 50 | Y7: Corte
I8: D | J8: F | K8: F | L8: ln(F) | M8: Fest | N8: Ab | O8: Hf | P8: Vmed | Q8: V | R8: Vest | S8: q | W8: F | X8: V | Y8: F | Z8: V
I9: cm | K9: n/ha | M9: n/ha | N9: m2/ha | O9: m | P9: m3/ha | Q9: m3/ha | R9: m3/ha | U9: Soma | V9: b0 | W9: n/ha | X9: m3/ha | Y9: n/ha | Z9: m3/ha
I10: 0 | J10: =FREQUENCY(Questão1!P8:P37,Questão2!I11:I21) -> 0
I11: 20 | J11: 0 | O11: =IF(L11=0,0,2.8088*EXP(0.0212*I11)) -> 0
I12: 30 | J12: 0 | O12: =IF(L12=0,0,2.8088*EXP(0.0212*I12)) -> 0
I13: 40 | J13: 0 | O13: 0
I14: 50 | J14: 0 | O14: 0
I15: 60 | J15: 0 | O15: 0
I16: 70 | J16: 0 | O16: 0
I17: 80 | J17: 0 | O17: 0
I18: 90 | J18: 0 | O18: 0
I19: 100 | J19: 0 | O19: 0
I20: 110 | J20: 0 | O20: 0
I21: 120 | J21: 0 | O21: 0
X22: =SUM(X11:X21) -> 0

Sheet Questão3
I3: Chuva | R3: Áreas (ha)
I4: Dia | J4: T (h) | K4: P (mm) | L4: i (mm/h) | M4: e | N4: E | O4: R | Q4: Fator
I5: 1 | J5: 0.5 | K5: 12 | Q5: R
J6: 1 | K6: 6 | Q6: a
J7: 1.5 | K7: 22 | Q7: b
Q8: c
I9: 2 | J9: 0.5 | K9: 26 | Q9: M
J10: 1 | K10: 11 | Q10: K
Q11: L
N12: Rtotal = | Q12: S
Q13: C
I14: Solo | Q14: P
I15: Areia grossa (%) | M15: =IF(AleatorioEntreFixo()*MID(Inicial!B18,3,2)*1<15,15,AleatorioEntreFixo()*MID(Inicial!B18,3,2)*1) -> 87.53389281 | Q15: A (ton/ha)
I16: silte + Areia fina (%) | M16: =100-M15-M17 -> 2.46610719 | Q16: Atotal (ton/ano)
I17: Argila (%) | M17: =IF(AleatorioEntreFixo()*MID(Inicial!B18,6,2)*1<10,10,IF(AleatorioEntreFixo()*MID(Inicial!B18,6,2)*1>30,30)) -> 10
I18: MO (%) | M18: =IF(AleatorioEntreFixo()*RIGHT(Inicial!B18,2)*1/5<=1,3,AleatorioEntreFixo()*RIGHT(Inicial!B18,2)*1/5) -> 5.996004546
I19: Permeabilidade | M19: =IF(Inicial!B18<=8881066,"muito baixo",IF(AND(Inicial!B18>8881066,Inicial!B18<=9172411),"baixa",IF(AND(Inicial!B18>9172411,Inicial!B18<=9463756),"baixa a moderada",IF(AND(Inicial!B18>9463756,Inicial!B18<=9755101),"moderada",IF(AND(Inicial!B18>9755101,Inicial!B18<=10046446),"alta","muito alta"))))) -> muito baixo
I20: declividade (%) | M20: =RIGHT(Inicial!B18,3)*1/100 -> 9.41
I21: Comprimento da encosta (m) | M21: =RIGHT(Inicial!B18,3)*1/10 -> 94.1
I22: Cobertura (%) | M22: =IF(ROUND(AleatorioEntreFixo()*MID(Inicial!$B$18,3,2)*10,0)<25,25,IF(ROUND(AleatorioEntreFixo()*MID(Inicial!$B$18,3,2)*10,0)>75,75,ROUND(AleatorioEntreFixo()*MID(Inicial!$B$18,3,2)*10,0))) -> 727
I23: Cobertura com gramínea (%) | M23: =IF(ROUND(AleatorioEntreFixo()*MID(Inicial!$B$18,3,2)*10,0)<0,,IF(ROUND(AleatorioEntreFixo()*MID(Inicial!$B$18,3,2)*10,0)>95,95,ROUND(AleatorioEntreFixo()*MID(Inicial!$B$18,3,2)*10,0))) -> 755
